bitfinex-derivatives/quotes_BTCF0:USTF0_20250915
["timestamp","ask_amount","ask_price","bid_price","bid_amount"]
[1757939695119,0.18263627,114940.0,114930.0,0.03624]
[1757939695726,0.54343627,114940.0,114930.0,0.03624]
[1757939698228,0.408471,114940.0,114930.0,0.03624]
[1757939698429,0.54343627,114940.0,114930.0,0.03624]
[1757939698818,0.408471,114940.0,114930.0,0.03624]
[1757939699022,0.54343627,114940.0,114930.0,0.03624]
[1757939701233,0.408471,114940.0,114930.0,0.03624]
[1757939701425,0.54343627,114940.0,114930.0,0.03624]
[1757939709232,0.408471,114940.0,114930.0,0.03624]
[1757939709434,0.54343627,114940.0,114930.0,0.03624]
[1757939717336,0.408471,114940.0,114930.0,0.03624]
[1757939717538,0.54343627,114940.0,114930.0,0.03624]
[1757939717739,0.408471,114940.0,114930.0,0.03624]
[1757939717938,0.408471,114940.0,114930.0,0.17120527]
[1757939718140,0.408471,114940.0,114930.0,0.03624]
[1757939719341,0.54343627,114940.0,114930.0,0.03624]
[1757939720644,0.408471,114940.0,114930.0,0.03624]
[1757939721550,0.54343627,114940.0,114930.0,0.03624]
[1757939723843,0.54342495,114940.0,114930.0,0.17119395]
[1757939728655,0.54342495,114940.0,114930.0,0.24253395]
[1757939729454,0.408471,114940.0,114930.0,0.10758]
[1757939729748,0.54342495,114940.0,114930.0,0.24253395]
[1757939732049,0.54342495,114940.0,114930.0,0.10758]
[1757939732356,0.6783789,114940.0,114930.0,0.10758]
[1757939734155,0.6773789,114940.0,114930.0,0.10758]
[1757939734357,0.407471,114940.0,114930.0,0.10758]
[1757939734557,0.6773789,114940.0,114930.0,0.24253395]
[1757939734755,0.6763789,114940.0,114930.0,0.24253395]
[1757939735356,0.6763789,114940.0,114930.0,0.10758]
[1757939736357,0.406471,114940.0,114930.0,0.10758]
[1757939736552,0.6763789,114940.0,114930.0,0.10758]
[1757939739659,0.54142495,114940.0,114930.0,0.24253395]
[1757939740661,0.406471,114940.0,114930.0,0.24253395]
[1757939741262,0.54142495,114940.0,114930.0,0.24253395]
[1757939741767,0.18062495,114940.0,114930.0,0.60333395]
[1757939742262,0.045671,114940.0,114930.0,0.60333395]
[1757939742462,0.18062495,114940.0,114930.0,0.60333395]
[1757939743769,0.045671,114940.0,114930.0,0.60333395]
[1757939744064,0.045671,114940.0,114930.0,0.85333395]
[1757939746461,0.045671,114940.0,114930.0,0.71838]
[1757939746964,0.18062495,114940.0,114930.0,0.85333395]
[1757939747269,0.045671,114940.0,114930.0,0.85333395]
[1757939747464,0.18062495,114940.0,114930.0,0.85333395]
[1757939748669,0.024191,114940.0,114930.0,0.9882879]
[1757939749261,0.001,114940.0,114930.0,0.9882879]
[1757939749468,0.001,114940.0,114930.0,1.2548879]
[1757939749967,0.52700902,114970.0,114950.0,0.01285]
[1757939750163,0.02192,114960.0,114950.0,0.03487]
[1757939750363,0.04523512,114960.0,114950.0,0.03487]
[1757939751269,0.04523512,114960.0,114950.0,0.16982395]
[1757939751967,0.18018907,114960.0,114950.0,0.16982395]
[1757939752974,0.2494446,114960.0,114950.0,0.16982395]
[1757939754569,0.6102446,114960.0,114950.0,0.16982395]
[1757939755276,0.47529065,114960.0,114950.0,0.03487]
[1757939755571,0.74519855,114960.0,114950.0,0.03487]
[1757939756176,0.74519855,114960.0,114950.0,0.16982395]
[1757939757077,0.6102446,114960.0,114950.0,0.16982395]
[1757939757379,0.74519855,114960.0,114950.0,0.03487]
[1757939757679,0.99519855,114960.0,114940.0,0.39149322]
[1757939757976,0.15639395,114950.0,114940.0,0.54842717]
[1757939758372,0.15639395,114950.0,114940.0,0.41347322]
[1757939758578,0.15639395,114950.0,114940.0,0.54842717]
[1757939758876,0.15639395,114950.0,114940.0,0.54942717]
[1757939759277,0.15639395,114950.0,114940.0,0.55142717]
[1757939760377,0.02144,114950.0,114940.0,0.68638112]
[1757939760981,0.15639395,114950.0,114940.0,0.55142717]
[1757939761878,0.02144,114950.0,114940.0,0.55142717]
[1757939762180,0.15639395,114950.0,114940.0,0.55142717]
[1757939763784,0.02144,114950.0,114940.0,0.55142717]
[1757939763983,0.15639395,114950.0,114940.0,0.55142717]
[1757939764388,0.15639395,114950.0,114940.0,0.19062717]
[1757939765181,0.15639395,114950.0,114940.0,1.01402717]
[1757939765579,0.15639395,114950.0,114940.0,0.19062717]
[1757939765879,0.15639395,114950.0,114940.0,0.05567322]
[1757939766181,0.51719395,114950.0,114940.0,0.03783]
[1757939766380,0.93458629,114950.0,114940.0,0.003]
[1757939766686,0.79963234,114950.0,114940.0,0.003]
[1757939766984,0.79963234,114950.0,114940.0,0.02498]
[1757939767185,0.79963234,114950.0,114940.0,0.09632]
[1757939767980,0.80063234,114950.0,114940.0,0.09532]
[1757939768180,0.65647839,114950.0,114940.0,0.10856]
[1757939768385,0.79143234,114950.0,114940.0,0.24351395]
[1757939768780,0.79243234,114950.0,114940.0,0.24151395]
[1757939768980,0.79243234,114950.0,114940.0,0.7372679]
[1757939768981,0.18163234,114950.0,114940.0,0.7372679]
[1757939769185,0.18163234,114950.0,114940.0,0.60231395]
[1757939769385,0.18163234,114950.0,114940.0,0.24151395]
[1757939771181,0.04667839,114950.0,114940.0,0.24151395]
[1757939771879,0.18163234,114950.0,114940.0,0.24151395]
[1757939772088,0.18163234,114950.0,114940.0,0.10656]
[1757939772287,0.18163234,114950.0,114940.0,0.24151395]
[1757939772488,0.04667839,114950.0,114940.0,0.24151395]
[1757939772688,0.18163234,114950.0,114940.0,0.24151395]
[1757939773077,0.18163234,114950.0,114940.0,0.10656]
[1757939773283,0.18163234,114950.0,114940.0,0.24151395]
[1757939782797,0.18163234,114950.0,114940.0,0.10656]
[1757939782997,0.18163234,114950.0,114940.0,0.24151395]
[1757939783399,0.54243234,114950.0,114940.0,0.24151395]
[1757939784412,0.54243234,114950.0,114940.0,0.10656]
[1757939785806,0.542421,114950.0,114940.0,0.10656]
[1757939788807,0.40747839,114950.0,114940.0,0.10656]
[1757939789108,0.542421,114950.0,114940.0,0.10656]
[1757939790108,0.40747839,114950.0,114940.0,0.10656]
[1757939795506,0.542421,114950.0,114940.0,0.10656]
[1757939800511,0.40747839,114950.0,114940.0,0.10656]
[1757939801013,0.542421,114950.0,114940.0,0.10656]
[1757939802614,0.181621,114950.0,114940.0,0.10656]
[1757939805219,0.542421,114950.0,114940.0,0.09332]
[1757939805412,0.542421,114950.0,114940.0,0.07134]
[1757939805818,0.542421,114950.0,114940.0,0.09261]
[1757939806020,0.542421,114950.0,114940.0,0.10549]
[1757939806621,0.40747839,114950.0,114940.0,0.10549]
[1757939806820,0.542421,114950.0,114940.0,0.10549]
[1757939810622,0.181621,114950.0,114940.0,0.10549]
[1757939826845,0.04667839,114950.0,114940.0,0.10549]
[1757939827344,0.181621,114950.0,114940.0,0.10549]
[1757939829143,0.04667839,114950.0,114940.0,0.10549]
[1757939829346,0.181621,114950.0,114940.0,0.10549]
[1757939835137,0.542421,114950.0,114940.0,0.10549]
[1757939836245,0.542421,114950.0,114940.0,0.07134]
[1757939837345,0.542421,114950.0,114940.0,0.09443]
[1757939841645,0.542421,114950.0,114940.0,0.07134]
[1757939842843,0.40747839,114950.0,114940.0,0.07134]
[1757939843045,0.542421,114950.0,114940.0,0.07134]
[1757939844341,0.542421,114950.0,114940.0,0.09443]
[1757939845748,0.54242727,114950.0,114940.0,0.09443]
[1757939846844,0.40747839,114950.0,114940.0,0.09443]
[1757939847046,1.36054727,114950.0,114940.0,0.09443]
[1757939847448,1.36038727,114950.0,114940.0,0.09443]
[1757939849151,0.54242727,114950.0,114940.0,0.09443]
[1757939849351,0.86451839,114950.0,114940.0,0.24206888]
[1757939849549,0.99946727,114950.0,114940.0,0.24206888]
[1757939850052,0.86451839,114950.0,114940.0,0.24206888]
[1757939850253,0.99938727,114950.0,114940.0,0.24206888]
[1757939850854,0.04667839,114950.0,114940.0,0.24206888]
[1757939851044,0.99938727,114950.0,114940.0,0.24206888]
[1757939851355,0.18162727,114950.0,114940.0,0.24206888]
[1757939851655,0.99930727,114950.0,114940.0,0.24206888]
[1757939852449,0.99930727,114950.0,114940.0,0.10712]
[1757939852652,0.99930727,114950.0,114940.0,0.24206888]
[1757939853448,0.18162727,114950.0,114940.0,0.24206888]
[1757939853650,0.99930727,114950.0,114940.0,0.24206888]
[1757939855356,0.18162727,114950.0,114940.0,0.24206888]
[1757939855556,0.99902727,114950.0,114940.0,0.24206888]
[1757939857255,0.04667839,114950.0,114940.0,0.24206888]
[1757939857456,0.99890727,114950.0,114940.0,0.24206888]
[1757939859155,0.18162727,114950.0,114940.0,0.24206888]
[1757939859458,0.18162727,114950.0,114940.0,0.37701776]
[1757939860761,0.18162727,114950.0,114940.0,0.24206888]
[1757939865261,0.99842727,114950.0,114940.0,0.24206888]
[1757939867955,0.18162727,114950.0,114940.0,0.24206888]
[1757939868164,0.04667839,114950.0,114940.0,0.73781776]
[1757939872771,0.18162727,114950.0,114940.0,0.73781776]
[1757939875778,0.18162727,114950.0,114940.0,0.46792]
[1757939876072,0.79929727,114950.0,114940.0,0.09443]
[1757939879276,0.54929727,114950.0,114940.0,0.09443]
[1757939879979,0.54242727,114950.0,114940.0,0.10826]
[1757939880678,0.40747839,114950.0,114940.0,0.10826]
[1757939880980,0.54242727,114950.0,114940.0,0.10826]
[1757939882675,0.54242727,114950.0,114940.0,0.07134]
[1757939882877,1.09339478,114950.0,114920.0,0.01782341]
[1757939883081,0.65870776,114930.0,114900.0,0.50957888]
[1757939883278,0.15608888,114910.0,114900.0,0.53143888]
[1757939883976,0.02114,114910.0,114900.0,0.53143888]
[1757939884382,0.15608888,114910.0,114900.0,0.53143888]
[1757939884682,0.02114,114910.0,114900.0,0.53143888]
[1757939884882,0.15408888,114910.0,114900.0,0.53143888]
[1757939885284,0.15308888,114910.0,114900.0,0.53143888]
[1757939885485,0.01814,114910.0,114900.0,0.66638776]
[1757939885686,0.01814,114910.0,114900.0,0.67138776]
[1757939886185,0.01814,114910.0,114900.0,0.66638776]
[1757939886384,0.01814,114910.0,114900.0,0.66838776]
[1757939886685,0.03077743,114910.0,114900.0,0.66838776]
[1757939886986,0.03077743,114910.0,114900.0,0.67038776]
[1757939887485,0.13494888,114920.0,114900.0,0.67038776]
[1757939887788,0.24845883,114920.0,114910.0,0.17063888]
[1757939888985,0.24945883,114920.0,114910.0,0.17063888]
[1757939889487,0.26187885,114920.0,114910.0,0.17063888]
[1757939890182,0.23889289,114920.0,114910.0,0.17063888]
[1757939890489,0.10394401,114920.0,114910.0,0.17063888]
[1757939890787,0.23889289,114920.0,114910.0,0.17063888]
[1757939896291,0.10394401,114920.0,114910.0,0.17063888]
[1757939896486,0.23889289,114920.0,114910.0,0.17063888]
[1757939898697,0.10394401,114920.0,114910.0,0.03569]
[1757939898885,0.23889289,114920.0,114910.0,0.17063888]
[1757939900387,0.10394401,114920.0,114910.0,0.17063888]
[1757939900582,0.23889289,114920.0,114910.0,0.17063888]
[1757939901987,0.10394401,114920.0,114910.0,0.03569]
[1757939902188,0.23889289,114920.0,114910.0,0.03569]
[1757939902396,0.23889289,114920.0,114910.0,0.17063888]
[1757939904694,0.23889289,114920.0,114910.0,0.03569]
[1757939904889,0.23889289,114920.0,114910.0,0.17063888]
[1757939905488,0.10394401,114920.0,114910.0,0.17063888]
[1757939905689,0.23889289,114920.0,114910.0,0.17063888]
[1757939907897,0.10394401,114920.0,114910.0,0.17068251]
[1757939909102,0.12695998,114920.0,114910.0,0.17068251]
[1757939910802,0.12695998,114920.0,114910.0,0.03569]
[1757939911002,0.12695998,114920.0,114910.0,0.17068251]
[1757939912505,0.62275249,114920.0,114910.0,0.03569]
[1757939913903,0.26195249,114920.0,114910.0,0.03569]
[1757939914091,0.26195249,114920.0,114910.0,0.17068251]
[1757939914499,0.12695998,114920.0,114910.0,0.17068251]
[1757939927019,0.09339996,114920.0,114910.0,0.78148251]
[1757939927313,0.001,114920.0,114910.0,0.97148251]
[1757939927815,0.001,114920.0,114910.0,1.04974026]
[1757939928016,0.001,114920.0,114910.0,0.85974026]
[1757939928220,0.001,114920.0,114910.0,0.78148251]
[1757939928613,0.51851251,114950.0,114940.0,0.01267]
[1757939928915,0.61272871,114950.0,114940.0,0.03428]
[1757939929605,0.4777362,114950.0,114940.0,0.03428]
[1757939929809,0.4797362,114950.0,114940.0,0.03428]
[1757939930014,0.49159848,114950.0,114940.0,0.03428]
[1757939931617,0.49359848,114950.0,114940.0,0.03428]
[1757939932724,0.62859099,114950.0,114940.0,0.03428]
[1757939933824,0.49359848,114950.0,114940.0,0.03428]
[1757939934122,0.49359848,114950.0,114940.0,0.16927251]
[1757939935621,0.49359848,114950.0,114940.0,0.03428]
[1757939939230,0.62859099,114950.0,114940.0,0.03428]
[1757939941532,0.49359848,114950.0,114940.0,0.03428]
[1757939942331,0.49359848,114950.0,114940.0,0.16927251]
[1757939943132,0.49359848,114950.0,114940.0,0.03428]
[1757939944827,0.49359848,114950.0,114940.0,0.16927251]
[1757939945028,0.49359848,114950.0,114940.0,0.03428]
[1757939945729,0.62859099,114950.0,114940.0,0.03428]
[1757939946032,0.63546099,114950.0,114930.0,0.08401]
[1757939946233,0.51722251,114940.0,114930.0,0.10728]
[1757939946432,0.54025728,114940.0,114930.0,0.10728]
[1757939947640,1.35169728,114940.0,114930.0,0.10728]
[1757939947830,1.35269728,114940.0,114930.0,0.10728]
[1757939950034,1.35369728,114940.0,114930.0,0.10728]
[1757939951640,1.35756728,114940.0,114930.0,0.10728]
[1757939952130,1.35369728,114940.0,114930.0,0.10728]
[1757939952331,0.54225728,114940.0,114930.0,0.10728]
[1757939952531,0.04646477,114940.0,114930.0,0.10728]
[1757939952735,0.18145728,114940.0,114930.0,0.10728]
[1757939953140,0.99249728,114940.0,114930.0,0.10728]
[1757939953839,0.18145728,114940.0,114930.0,0.10728]
[1757939954343,0.54225728,114940.0,114930.0,0.10728]
[1757939954539,0.54225728,114940.0,114930.0,0.07134]
[1757939954938,0.54225728,114940.0,114930.0,0.09461]
[1757939955931,0.40726477,114940.0,114930.0,0.09461]
[1757939956135,0.54225728,114940.0,114930.0,0.09461]
[1757939956442,0.54225728,114940.0,114930.0,0.1082]
[1757939957243,1.35309728,114940.0,114930.0,0.1082]
[1757939958048,0.99225728,114940.0,114930.0,0.1082]
[1757939958245,1.35305728,114940.0,114930.0,0.1082]
[1757939961146,1.21806477,114940.0,114930.0,0.1082]
[1757939961439,1.35281728,114940.0,114930.0,0.1082]
[1757939962540,1.21782477,114940.0,114930.0,0.1082]
[1757939962740,1.35281728,114940.0,114930.0,0.1082]
[1757939963142,1.35281728,114940.0,114930.0,0.09461]
[1757939964334,1.60281728,114940.0,114930.0,0.07134]
[1757939966044,1.60281728,114940.0,114920.0,0.01314]
[1757939966248,0.15660251,114930.0,114920.0,0.03598]
[1757939966441,0.17963728,114930.0,114920.0,0.03598]
[1757939968638,0.17963728,114930.0,114920.0,0.10733]
[1757939969655,0.98975728,114930.0,114920.0,0.10733]
[1757939969954,0.98975898,114930.0,114920.0,0.10733]
[1757939970847,0.99895898,114930.0,114920.0,0.07135]
[1757939971445,0.99887898,114930.0,114920.0,0.09419]
[1757939972454,0.99887898,114930.0,114920.0,0.07135]
[1757939972653,1.35967898,114930.0,114920.0,0.07135]
[1757939974853,0.54963898,114930.0,114920.0,0.07135]
[1757939975853,1.35939898,114930.0,114920.0,0.07135]
[1757939976754,0.54963898,114930.0,114920.0,0.07135]
[1757939976956,1.35935898,114930.0,114920.0,0.07135]
[1757939978156,0.54963898,114930.0,114920.0,0.07135]
[1757939978350,1.35927898,114930.0,114920.0,0.07135]
[1757939980658,0.54963898,114930.0,114920.0,0.07135]
[1757939981052,1.35915898,114930.0,114920.0,0.07135]
[1757939984160,0.54963898,114930.0,114920.0,0.07135]
[1757939984361,1.35895898,114930.0,114920.0,0.07135]
[1757939985055,0.54963898,114930.0,114920.0,0.07135]
[1757939985260,1.35887898,114930.0,114920.0,0.09419]
[1757939985663,1.35887898,114930.0,114920.0,0.07135]
[1757939988166,1.22380477,114930.0,114920.0,0.10733]
[1757939988362,1.22372477,114930.0,114920.0,0.10733]
[1757939988558,0.54963898,114930.0,114920.0,0.10733]
[1757939988864,0.40544477,114930.0,114920.0,0.10733]
[1757939989065,1.34947898,114930.0,114920.0,0.24232421]
[1757939989261,1.34947898,114930.0,114920.0,0.10733]
[1757939991668,1.34935898,114930.0,114920.0,0.10733]
[1757940001872,1.48435319,114930.0,114920.0,0.07135]
[1757940002571,1.73435319,114930.0,114920.0,0.07135]
[1757940002964,1.76560826,114930.0,114920.0,0.0478206]
[1757940004273,1.49561984,114930.0,114920.0,0.0478206]
[1757940004468,1.76560826,114930.0,114920.0,0.0478206]
[1757940005176,1.49561984,114930.0,114920.0,0.0478206]
[1757940005478,1.76560826,114930.0,114920.0,0.0478206]
[1757940007079,1.90060247,114930.0,114920.0,0.0478206]
[1757940007272,1.81251031,114930.0,114920.0,0.0478206]
[1757940007473,1.78125524,114930.0,114920.0,0.0478206]
[1757940008072,1.78049524,114930.0,114920.0,0.0478206]
[1757940010682,0.97233524,114930.0,114920.0,0.0478206]
[1757940010877,1.78037524,114930.0,114920.0,0.0478206]
[1757940011584,0.97233524,114930.0,114920.0,0.0478206]
[1757940011783,1.78033524,114930.0,114920.0,0.0478206]
[1757940012282,0.95659542,114930.0,114920.0,0.0478206]
[1757940012484,1.76455542,114930.0,114920.0,0.0478206]
[1757940014980,1.76455542,114930.0,114920.0,0.0128206]
[1757940015285,1.76443542,114930.0,114920.0,0.0128206]
[1757940018889,0.95659542,114930.0,114920.0,0.0128206]
[1757940019389,1.76431542,114930.0,114920.0,0.0128206]
[1757940021187,1.76419542,114930.0,114920.0,0.0128206]
[1757940021488,0.95659542,114930.0,114920.0,0.0128206]
[1757940021888,1.76419542,114930.0,114920.0,0.0128206]
[1757940022089,1.76415562,114930.0,114920.0,0.0128206]
[1757940022691,1.76415562,114930.0,114900.0,0.01371]
[1757940022889,0.49579421,114910.0,114900.0,0.03595]
[1757940023090,1.32630918,114910.0,114900.0,0.03595]
[1757940024095,0.51878918,114910.0,114900.0,0.03695]
[1757940024490,1.32626918,114910.0,114900.0,0.03695]
[1757940024902,1.32626918,114910.0,114900.0,0.03595]
[1757940025100,0.51878918,114910.0,114900.0,0.03695]
[1757940025398,1.32622918,114910.0,114900.0,0.03695]
[1757940025899,1.32622918,114910.0,114900.0,0.03895]
[1757940027201,0.59000235,114910.0,114900.0,0.03895]
[1757940027606,1.39732235,114910.0,114900.0,0.03895]
[1757940028104,0.59000235,114910.0,114900.0,0.03895]
[1757940028303,1.39732235,114910.0,114900.0,0.03895]
[1757940029902,1.39736452,114910.0,114900.0,0.03895]
[1757940030902,1.39724452,114910.0,114900.0,0.03895]
[1757940032105,0.59004452,114910.0,114900.0,0.03895]
[1757940032402,1.39720452,114910.0,114900.0,0.03895]
[1757940039801,0.45500814,114910.0,114900.0,0.03895]
[1757940040005,1.39680452,114910.0,114900.0,0.03895]
[1757940041104,1.39680452,114910.0,114900.0,0.01671]
[1757940041806,1.39680452,114910.0,114900.0,0.03939]
[1757940042305,1.42796675,114910.0,114900.0,0.03939]
[1757940043007,1.39680452,114910.0,114900.0,0.03939]
[1757940046310,1.42796675,114910.0,114900.0,0.03939]
[1757940049915,0.62120675,114910.0,114900.0,0.03939]
[1757940050217,1.42756675,114910.0,114900.0,0.03939]
[1757940050416,1.29253037,114910.0,114900.0,0.03939]
[1757940050618,1.42756675,114910.0,114900.0,0.03939]
[1757940052322,1.39640452,114910.0,114900.0,0.03939]
[1757940058422,0.59004452,114910.0,114900.0,0.03939]
[1757940058622,1.39596452,114910.0,114900.0,0.03939]
[1757940060325,1.26092814,114910.0,114900.0,0.03939]
[1757940060534,1.39596452,114910.0,114900.0,0.03939]
[1757940063131,1.26092814,114910.0,114900.0,0.03939]
[1757940063431,1.39596452,114910.0,114900.0,0.03939]
[1757940067326,1.26092814,114910.0,114900.0,0.03939]
[1757940067528,1.39596452,114910.0,114900.0,0.03939]
[1757940070832,1.26092814,114910.0,114900.0,0.03939]
[1757940071126,0.09420814,114910.0,114900.0,0.42442638]
[1757940072227,0.09420814,114910.0,114900.0,0.78522638]
[1757940073134,0.09420814,114910.0,114900.0,0.65019]
[1757940073435,0.09420814,114910.0,114900.0,0.78522638]
[1757940075330,0.07121317,114910.0,114900.0,0.78522638]
[1757940075627,1.30119638,114920.0,114910.0,0.03411]
[1757940075831,1.32420669,114920.0,114910.0,0.03411]
[1757940077529,1.32420669,114920.0,114910.0,0.03511]
[1757940078535,1.32420669,114920.0,114910.0,0.03611]
[1757940088544,1.32348669,114920.0,114910.0,0.03611]
[1757940091748,1.45848063,114920.0,114910.0,0.03611]
[1757940095653,1.18845031,114920.0,114910.0,0.03611]
[1757940095951,1.45848063,114920.0,114910.0,0.03611]
[1757940096540,1.45808063,114920.0,114910.0,0.03611]
[1757940096744,1.18805031,114920.0,114910.0,0.03611]
[1757940096952,1.45808063,114920.0,114910.0,0.03611]
[1757940097845,1.18805031,114920.0,114910.0,0.03611]
[1757940098042,1.45808063,114920.0,114910.0,0.03611]
[1757940099054,1.18793031,114920.0,114910.0,0.03611]
[1757940099254,1.45796063,114920.0,114910.0,0.03611]
[1757940106655,0.65384063,114920.0,114910.0,0.03611]
[1757940106854,1.45772063,114920.0,114910.0,0.03611]
[1757940109953,0.65384063,114920.0,114910.0,0.03611]
[1757940110144,1.45756063,114920.0,114910.0,0.17112516]
[1757940110752,1.45956063,114920.0,114910.0,0.16912516]
[1757940111060,0.38781031,114920.0,114910.0,0.5714878]
[1757940111549,0.38381031,114920.0,114910.0,0.43647264]
[1757940111754,0.38581031,114920.0,114910.0,0.43647264]
[1757940112257,0.02501031,114920.0,114910.0,0.43647264]
[1757940113656,0.02401031,114920.0,114910.0,0.43647264]
[1757940114456,0.02301031,114920.0,114910.0,0.43647264]
[1757940120266,0.13501516,114940.0,114930.0,0.01316]
[1757940120465,0.15791648,114940.0,114930.0,0.17100516]
[1757940121061,0.02290132,114940.0,114930.0,0.17100516]
[1757940121660,0.02690132,114940.0,114930.0,0.17100516]
[1757940122175,0.13901516,114940.0,114930.0,0.17100516]
[1757940122361,0.16089789,114940.0,114930.0,0.17100516]
[1757940122670,0.16089789,114940.0,114930.0,0.03599]
[1757940122881,0.16089789,114940.0,114930.0,0.17100516]
[1757940123577,0.16089789,114940.0,114930.0,0.20459516]
[1757940123870,0.15989789,114940.0,114930.0,0.20459516]
[1757940124272,0.15889789,114940.0,114930.0,0.06958]
[1757940124468,0.29391305,114940.0,114930.0,0.06958]
[1757940125074,0.29291305,114940.0,114930.0,0.06958]
[1757940126476,0.65371305,114940.0,114930.0,0.06958]
[1757940127581,0.65471305,114940.0,114930.0,0.06958]
[1757940128379,0.65571305,114940.0,114930.0,0.06958]
[1757940128878,1.45855305,114940.0,114930.0,0.06958]
[1757940133880,0.65571305,114940.0,114930.0,0.06958]
[1757940134079,1.45831305,114940.0,114930.0,0.06958]
[1757940134385,0.65571305,114940.0,114930.0,0.06958]
[1757940134586,1.45823305,114940.0,114930.0,0.06958]
[1757940135485,1.45819305,114940.0,114930.0,0.06958]
[1757940136580,0.65571305,114940.0,114930.0,0.06958]
[1757940136788,1.45819305,114940.0,114930.0,0.06958]
[1757940137888,1.09739305,114940.0,114930.0,0.06958]
[1757940138084,1.45819305,114940.0,114930.0,0.06958]
[1757940140389,1.45803305,114940.0,114930.0,0.06958]
[1757940144690,0.65571305,114940.0,114930.0,0.06958]
[1757940144998,1.45779305,114940.0,114930.0,0.06958]
[1757940146399,0.65571305,114940.0,114930.0,0.06958]
[1757940146599,1.45775305,114940.0,114930.0,0.06958]
[1757940147002,0.65571305,114940.0,114930.0,0.06958]
[1757940147197,1.45771305,114940.0,114930.0,0.06958]
[1757940148496,0.65571305,114940.0,114930.0,0.06958]
[1757940148701,0.02488273,114940.0,114930.0,0.20459516]
[1757940148902,0.02488273,114940.0,114930.0,0.45459516]
[1757940149202,0.15989789,114940.0,114930.0,0.45459516]
[1757940151599,0.15989789,114940.0,114930.0,0.31958]
[1757940151800,0.15982801,114940.0,114930.0,0.31958]
[1757940152503,0.15982801,114940.0,114930.0,0.33750979]
[1757940154194,0.15982801,114940.0,114930.0,0.08750979]
[1757940154395,0.52062801,114940.0,114930.0,0.08750979]
[1757940157599,1.32222801,114940.0,114930.0,0.08750979]
[1757940160105,1.70717329,114940.0,114930.0,0.06958]
[1757940160399,1.57222801,114940.0,114930.0,0.06958]
[1757940160599,1.57222801,114940.0,114930.0,0.04675]
[1757940164303,1.73833552,114940.0,114930.0,0.03359]
[1757940165008,1.73833552,114940.0,114910.0,0.01298]
[1757940165210,0.49574528,114920.0,114910.0,0.03402]
[1757940165504,1.31998801,114920.0,114910.0,0.03402]
[1757940166800,1.31998801,114920.0,114910.0,0.03502]
[1757940167410,1.31998801,114920.0,114910.0,0.03602]
[1757940168010,1.31990801,114920.0,114910.0,0.03602]
[1757940168907,1.31990801,114920.0,114910.0,0.06962]
[1757940169115,1.32090801,114920.0,114910.0,0.06862]
[1757940169411,1.32190801,114920.0,114910.0,0.04658]
[1757940169811,1.32190801,114920.0,114910.0,0.06762]
[1757940170603,1.32190801,114920.0,114910.0,0.04658]
[1757940170806,0.52062801,114920.0,114910.0,0.04658]
[1757940171314,1.32182801,114920.0,114910.0,0.04658]
[1757940171805,1.32182801,114920.0,114910.0,0.06762]
[1757940174013,1.68262801,114920.0,114910.0,0.06762]
[1757940175515,0.88142801,114920.0,114910.0,0.06762]
[1757940176317,1.68250801,114920.0,114910.0,0.06762]
[1757940176817,0.88142801,114920.0,114910.0,0.06762]
[1757940177317,1.68246801,114920.0,114910.0,0.06762]
[1757940178219,0.88142801,114920.0,114910.0,0.06762]
[1757940178418,1.68246801,114920.0,114910.0,0.06762]
[1757940180020,0.88142801,114920.0,114910.0,0.06762]
[1757940180222,1.68238801,114920.0,114910.0,0.06762]
[1757940181622,1.68238801,114920.0,114910.0,0.04658]
[1757940181823,1.68238801,114920.0,114910.0,0.0336]
[1757940181824,1.93238801,114920.0,114910.0,0.0336]
[1757940185019,1.13142801,114920.0,114910.0,0.0336]
[1757940185219,1.93222801,114920.0,114910.0,0.0336]
[1757940187919,1.93214801,114920.0,114910.0,0.04621]
[1757940188527,1.13142801,114920.0,114910.0,0.04621]
[1757940188824,1.93214801,114920.0,114910.0,0.04621]
[1757940189220,1.96331024,114920.0,114910.0,0.04621]
[1757940189830,1.93214801,114920.0,114910.0,0.04621]
[1757940190120,1.96331024,114920.0,114910.0,0.04621]
[1757940190729,1.96327024,114920.0,114910.0,0.04621]
[1757940192323,1.93210801,114920.0,114910.0,0.04621]
[1757940194220,1.96327024,114920.0,114910.0,0.04621]
[1757940194826,1.96327024,114920.0,114910.0,0.06928]
[1757940195221,1.16259024,114920.0,114910.0,0.06928]
[1757940195423,1.96315024,114920.0,114910.0,0.06928]
[1757940195922,1.24155024,114920.0,114910.0,0.04621]
[1757940196126,1.96315024,114920.0,114910.0,0.04621]
[1757940198633,1.96315024,114920.0,114910.0,0.06928]
[1757940198824,1.96315024,114920.0,114910.0,0.04621]
[1757940200732,1.94026751,114920.0,114910.0,0.04621]
[1757940200928,1.96331502,114920.0,114910.0,0.04621]
[1757940201135,1.96331502,114920.0,114910.0,0.0336]
[1757940203129,1.71331502,114920.0,114910.0,0.0336]
[1757940208827,1.71331502,114920.0,114900.0,0.01371]
[1757940209034,0.49574528,114910.0,114900.0,0.03675]
[1757940209337,0.51879279,114910.0,114900.0,0.03675]
[1757940210238,0.51879279,114910.0,114900.0,0.01371]
[1757940211023,0.51879279,114910.0,114900.0,0.03675]
[1757940212235,0.58896921,114910.0,114900.0,0.03675]
[1757940212535,0.58896921,114910.0,114900.0,0.07034]
[1757940213637,0.58896921,114910.0,114900.0,0.0473]
[1757940213836,0.72414845,114910.0,114900.0,0.07034]
[1757940214334,1.52414845,114910.0,114900.0,0.07034]
[1757940215339,1.52414845,114910.0,114900.0,0.0473]
[1757940216136,1.52414845,114910.0,114900.0,0.07034]
[1757940216540,0.72414845,114910.0,114900.0,0.07034]
[1757940216837,1.52406845,114910.0,114900.0,0.07034]
[1757940222948,1.52406845,114910.0,114900.0,0.03359]
[1757940224242,1.52406845,114910.0,114900.0,0.04694]
[1757940233058,0.72414845,114910.0,114900.0,0.04694]
[1757940233358,0.72414845,114910.0,114900.0,0.06998]
[1757940233956,1.52350845,114910.0,114900.0,0.06998]
[1757940234156,0.72414845,114910.0,114900.0,0.06998]
[1757940234354,1.52350845,114910.0,114900.0,0.06998]
[1757940235159,0.72414845,114910.0,114900.0,0.06998]
[1757940235357,1.52350845,114910.0,114900.0,0.06998]
[1757940235857,1.55467068,114910.0,114900.0,0.06998]
[1757940237255,0.75531068,114910.0,114900.0,0.06998]
[1757940237455,1.28442616,114910.0,114900.0,0.06998]
[1757940237662,0.48518616,114910.0,114900.0,0.06998]
[1757940237857,1.41948842,114910.0,114900.0,0.06998]
[1757940238058,1.38832619,114910.0,114900.0,0.06998]